bitfinex/quotes_SOLUSD_20250617
["timestamp","ask_amount","ask_price","bid_price","bid_amount"]
[1750171527557,17.56097844,149.85,149.81,11.24097844]
[1750171527752,17.56097844,149.85,149.77,23.36916604]
[1750171527753,6.32,149.85,149.84,11.24097844]
[1750171527958,149.1,149.87,149.84,11.24097844]
[1750171528184,149.1,149.87,149.83,11.24097844]
[1750171528185,0.28432314,149.86,149.83,11.24097844]
[1750171529178,0.14216157,149.86,149.83,11.24097844]
[1750171529456,0.28432314,149.86,149.77,82.75368897]
[1750171529649,11.52530158,149.86,149.82,11.24097844]
[1750171529855,0.28432314,149.86,149.82,11.24097844]
[1750171530290,0.28432314,149.86,149.83,11.24097844]
[1750171530803,149.1,149.87,149.83,11.24097844]
[1750171530955,18.64964886,149.88,149.85,11.24097844]
[1750171531159,12.42094775,149.89,149.87,11.24097844]
[1750171532387,12.42094775,149.89,149.87,17.91327595]
[1750171532959,12.42094775,149.89,149.88,11.24097844]
[1750171534259,12.42094775,149.89,149.88,17.91298271]
[1750171537886,12.42094775,149.89,149.88,19.52858271]
[1750171538089,6.3,149.95,149.88,36.20859338]
[1750171538382,18.64964886,149.97,149.94,17.90991517]
[1750171538587,23.61058515,149.98,149.96,11.24097844]
[1750171538794,155.4,150.0,149.96,11.24097844]
[1750171538971,0.28432314,149.99,149.96,11.24097844]
[1750171539174,0.28432314,149.99,149.97,11.24097844]
[1750171539376,14.12836415,150.01,149.98,11.24097844]
[1750171539676,14.12836415,150.01,149.94,34.58325117]
[1750171539677,14.12836415,150.01,149.95,26.0]
[1750171539856,14.12836415,150.01,150.0,11.24097844]
[1750171540460,14.12836415,150.01,150.0,17.9076451]
[1750171545581,11.52530158,150.06,150.0,17.9076451]
[1750171545771,11.52530158,150.06,150.02,11.24097844]
[1750171545971,11.52530158,150.06,150.02,17.9066021]
[1750171546394,11.24097844,150.04,149.99,6.66711114]
[1750171546581,0.28432314,150.03,150.0,11.24097844]
[1750171547498,0.28432314,150.03,150.0,17.90721892]
[1750171548181,0.28432314,150.05,150.02,11.24097844]
[1750171548378,0.28432314,150.05,150.01,11.24097844]
[1750171548579,30.17495044,150.05,150.0,6.66624048]
[1750171548782,18.933972,150.03,149.97,6.66800026]
[1750171548985,18.933972,150.03,149.97,17.9089787]
[1750171549180,11.24097844,150.01,149.97,17.9089787]
[1750171549584,0.28432314,150.02,149.99,11.24097844]
[1750171549987,27.98,150.03,150.0,11.24097844]
[1750171550211,26.0,150.04,150.02,11.24097844]
[1750171550375,83.8706273,150.07,150.03,11.24097844]
[1750171550581,11.24097844,150.06,150.02,11.24097844]
[1750171550897,0.14216157,150.05,150.01,11.24097844]
[1750171551196,0.28432314,150.05,150.02,11.24097844]
[1750171551393,0.28432314,150.05,150.02,17.90653247]
[1750171551777,0.28432314,150.05,150.03,11.24097844]
[1750171551972,13.887,150.1,150.04,11.24097844]
[1750171552175,11.24097844,150.09,150.02,6.66555403]
[1750171552485,37.24097844,150.09,150.04,11.24097844]
[1750171552679,26.0,150.09,150.06,11.24097844]
[1750171552886,32.53664886,150.1,150.06,11.24097844]
[1750171553087,0.28432314,150.09,150.06,11.24097844]
[1750171553471,36.1906273,150.1,150.05,11.24097844]
[1750171553674,36.1906273,150.1,150.06,11.24097844]
[1750171553900,0.14216157,150.09,150.06,11.24097844]
[1750171554300,0.28432314,150.09,150.06,11.24097844]
[1750171554686,0.28432314,150.09,150.02,16.66444474]
[1750171555008,11.24097844,150.08,150.04,11.24097844]
[1750171555306,30.17495044,150.09,150.05,11.24097844]
[1750171555488,30.17495044,150.09,150.05,17.9051393]
[1750171555994,30.17495044,150.09,150.03,6.66533359]
[1750171556197,0.28432314,150.06,150.03,6.66533359]
[1750171556401,11.52530158,150.06,150.03,6.66533359]
[1750171557077,0.28432314,150.06,150.03,17.90631203]
[1750171557279,0.28432314,150.06,150.01,6.66622225]
[1750171557499,0.28432314,150.06,150.03,11.24097844]
[1750171558086,11.24097844,150.07,150.03,11.24097844]
[1750171558284,0.28432314,150.07,150.04,11.24097844]
[1750171558516,11.24097844,150.08,150.04,11.24097844]
[1750171558674,0.28432314,150.08,150.04,11.24097844]
[1750171559004,0.14216157,150.08,150.04,11.24097844]
[1750171559383,0.28432314,150.08,150.05,6.66444518]
[1750171560010,11.52530158,150.08,150.05,6.66444518]
[1750171560311,0.28432314,150.08,150.05,6.66444518]
[1750171560698,11.52530158,150.08,150.05,6.66444518]
[1750171561182,11.52530158,150.08,150.03,11.24097844]
[1750171561385,0.28432314,150.05,150.01,11.24097844]
[1750171561689,0.28432314,150.05,150.02,11.24097844]
[1750171562301,11.24097844,150.06,150.02,17.90637409]
[1750171562508,0.28432314,150.06,150.02,17.90637409]
[1750171562687,30.17495044,150.06,150.0,6.66666666]
[1750171562886,30.17495044,150.06,150.01,11.24097844]
[1750171563888,30.17495044,150.06,150.0,6.66666666]
[1750171563889,30.17495044,150.06,150.02,11.24097844]
[1750171564090,37.24097844,150.07,150.03,11.24097844]
[1750171564294,11.24097844,150.08,150.04,11.24097844]
[1750171564615,0.14216157,150.08,150.05,11.24097844]
[1750171564913,0.14216157,150.08,150.04,11.24097844]
[1750171565399,0.28432314,150.08,150.05,11.24097844]
[1750171565606,43.54097844,150.1,150.07,6.663557]
[1750171566296,6.3,150.1,150.07,17.90453544]
[1750171566911,6.3,150.1,150.07,6.663557]
[1750171567208,6.3,150.1,150.07,17.90453544]
[1750171567511,6.3,150.1,150.07,6.663557]
[1750171567690,44.64964886,150.12,150.05,16.66107125]
[1750171567691,3.26266666,150.12,150.05,1.5919]
[1750171568094,3.26266666,150.12,150.1,11.24097844]
[1750171568397,3.26266666,150.12,150.09,11.24097844]
[1750171568594,0.14216157,150.12,150.09,11.24097844]
[1750171568796,30.17495044,150.11,150.05,1.5919]
[1750171569009,30.17495044,150.11,150.06,11.24097844]
[1750171569010,11.24097844,150.1,150.06,11.24097844]
[1750171569201,0.28432314,150.09,150.03,49.32866758]
[1750171569387,0.28432314,150.09,150.06,11.24097844]
[1750171569710,0.28432314,150.09,150.06,17.9046178]
[1750171569914,0.28432314,150.09,150.06,6.66363936]
[1750171570107,0.28432314,150.09,150.06,17.9046178]
[1750171570613,11.52530158,150.09,150.05,11.24097844]
[1750171570991,0.28432314,150.09,150.04,17.9058678]
[1750171571313,11.24097844,150.08,150.04,17.9058678]
[1750171571624,11.52530158,150.09,150.04,17.9058678]
[1750171571788,18.933972,150.09,150.04,17.9058678]
[1750171571986,30.17495044,150.09,150.04,17.9058678]
[1750171572506,11.24097844,150.07,150.03,11.24097844]
[1750171572692,11.24097844,150.07,150.02,17.90675633]
[1750171573007,0.28432314,150.08,150.02,6.66577789]
[1750171573008,11.24097844,150.06,150.02,6.66577789]
[1750171573191,11.24097844,150.06,150.02,17.90675633]
[1750171573597,11.24097844,150.07,150.02,17.90675633]
[1750171573802,11.24097844,150.05,150.02,6.66577789]
[1750171574209,30.17495044,150.06,150.02,6.66577789]
[1750171574618,35.10801208,150.06,150.02,6.66577789]
[1750171575135,23.86703364,150.06,150.02,6.66577789]
[1750171575440,35.10801208,150.06,150.02,6.66577789]
[1750171575605,4.93904269,150.05,150.02,6.66577789]
[1750171575799,4.93904269,150.05,150.01,17.90703733]
[1750171575800,11.24097844,150.05,150.01,17.90703733]
[1750171575989,4.93899734,150.05,150.01,17.90703733]
[1750171576189,30.17495044,150.06,150.01,17.90703733]
[1750171576611,4.94368468,150.05,150.01,17.90703733]
[1750171576927,30.17495044,150.06,150.01,17.90703733]
[1750171577088,55.8906273,150.09,150.05,11.24097844]
[1750171577296,55.8906273,150.09,150.01,23.33161451]
[1750171577297,4.94321065,150.08,150.04,11.24097844]
[1750171577503,4.94321065,150.07,150.04,17.90544114]
[1750171577688,11.24097844,150.08,150.04,17.90544114]
[1750171577895,4.94841458,150.07,150.04,17.90544114]
[1750171578102,11.24097844,150.06,150.03,6.66517139]
[1750171579204,4.95194858,150.05,150.03,6.66517139]
[1750171579400,16.47397255,150.07,150.03,17.90614983]
[1750171579608,4.9555497,150.06,150.04,11.24097844]
[1750171579919,4.9560915,150.05,150.03,6.66517139]
[1750171580097,11.24097844,150.06,150.03,6.66517139]
[1750171580297,4.95604523,150.05,150.03,6.66517139]
[1750171580496,11.24097844,150.06,150.03,6.66517139]
[1750171580706,4.96099096,150.05,150.03,6.66517139]
[1750171580911,11.52530158,150.07,150.03,6.66517139]
[1750171581218,4.96099029,150.06,150.03,11.24097844]
[1750171581416,4.96099029,150.05,150.03,11.24097844]
[1750171581606,11.52530158,150.07,150.03,11.24097844]
[1750171581923,4.96596494,150.06,150.03,11.24097844]
[1750171582126,9.93637636,150.05,149.99,23.33488899]
[1750171582337,11.24097844,150.06,150.02,11.24097844]
[1750171582620,9.9365028,150.05,150.02,11.24097844]
[1750171582823,9.9365028,150.04,150.02,11.24097844]
[1750171583014,4.96599946,150.03,150.02,11.24097844]
[1750171583213,4.96599946,150.03,149.99,23.33488899]
[1750171583425,4.97250433,150.02,150.0,11.24097844]
[1750171583600,11.24097844,150.04,150.0,11.24097844]
[1750171583802,4.97863171,150.03,150.0,11.24097844]
[1750171584013,4.97863171,150.02,150.0,11.24097844]
[1750171584202,11.24097844,150.04,150.0,11.24097844]
[1750171584402,9.95877916,150.03,150.01,6.66622225]
[1750171584609,4.97865794,150.02,150.01,6.66622225]
[1750171584923,0.28432314,150.04,150.01,17.90720069]
[1750171585100,4.97988496,150.03,150.01,17.90720069]
[1750171585303,0.28432314,150.04,150.01,6.66622225]
[1750171585504,9.95950206,150.03,150.01,6.66622225]
[1750171585728,11.52530158,150.04,150.01,6.66622225]
[1750171586022,0.28432314,150.02,149.97,17.9089787]
[1750171586196,4.98036679,150.01,149.97,17.9089787]
[1750171586394,4.98098886,150.0,149.97,17.9089787]
[1750171586619,0.28432314,150.02,149.98,11.24097844]
[1750171586800,9.95895372,150.01,149.98,11.24097844]
[1750171587105,0.28432314,150.02,149.99,11.24097844]
[1750171587400,4.97976775,150.01,149.99,11.24097844]
[1750171587609,20.97711307,150.05,150.0,11.24097844]
[1750171587610,11.24097844,150.05,150.0,11.24097844]
[1750171587814,11.24097844,150.05,150.01,11.24097844]
[1750171587815,10.24022916,150.04,150.01,11.24097844]
[1750171588014,10.24022916,150.04,149.97,23.33800092]
[1750171588015,0.28432314,150.04,150.02,11.24097844]
[1750171588403,0.28432314,150.04,150.02,17.90635042]
[1750171588808,32.26,150.06,150.03,11.24097844]
[1750171589012,32.26,150.06,150.04,11.24097844]
[1750171589213,32.26,150.06,150.03,11.24097844]
[1750171589729,32.26,150.06,150.04,11.24097844]
[1750171590112,26.0,150.06,150.04,11.24097844]
[1750171590315,26.0,150.06,150.02,6.66537198]
[1750171590316,46.56964886,150.1,150.06,6.66400106]
[1750171590633,0.28432314,150.07,150.06,6.66400106]
[1750171591005,0.14216157,150.07,150.06,6.66400106]
[1750171591327,0.28432314,150.08,150.06,6.66400106]
[1750171591514,42.21791461,150.09,150.05,17.90526025]
[1750171591716,4.97595487,150.08,150.05,6.66428181]
[1750171591929,0.28432314,150.08,150.05,6.66428181]
[1750171592125,0.28432314,150.08,150.02,16.66444474]
[1750171592126,30.17495044,150.08,150.03,11.24097844]
[1750171592432,4.97578666,150.07,150.03,17.90631203]
[1750171592638,11.52530158,150.06,150.03,6.66533359]
[1750171592931,11.24097844,150.05,150.01,6.66622225]
[1750171593137,11.24097844,150.05,150.01,17.90720069]
[1750171593437,11.24097844,150.04,149.99,17.90808958]
[1750171593946,11.52530158,150.03,149.99,6.66711114]
[1750171594108,11.52530158,150.03,149.99,17.90808958]
[1750171594617,0.28432314,150.03,149.99,17.90808958]
[1750171595840,11.24097844,150.02,149.99,6.66711114]
[1750171597508,35.15302549,150.03,149.99,6.66711114]
[1750171597725,4.9772135,150.02,149.99,6.66711114]
[1750171597909,35.15302549,150.03,149.99,6.66711114]
[1750171598142,4.97722176,150.02,149.99,6.66711114]
[1750171598456,4.97668467,150.04,150.01,17.90716548]
[1750171598614,34.86672474,150.05,150.01,17.90716548]
[1750171598814,5.11869024,150.04,150.01,6.66618704]
[1750171599016,0.28432314,150.04,150.01,17.90716548]
[1750171599517,4.97758762,150.03,150.01,6.66618704]
[1750171599713,11.24097844,150.03,150.01,6.66618704]
[1750171600624,11.24097844,150.03,150.0,6.66666666]
[1750171600939,0.28432314,150.02,150.0,6.66666666]
[1750171602640,0.28432314,150.02,149.98,27.90949385]
[1750171602810,0.28432314,150.02,149.98,24.13850094]
[1750171603434,0.28432314,150.02,149.99,7.46998553]
[1750171603621,7.75430867,150.02,149.97,14.13798579]
[1750171604015,7.75430867,150.02,149.98,7.46998553]
[1750171604216,18.933972,150.02,149.98,7.46998553]
[1750171604422,26.40395753,150.02,149.98,7.46998553]
[1750171604618,26.40395753,150.02,149.99,6.66711114]
[1750171605745,18.933972,150.02,149.99,6.66711114]
[1750171605928,26.40395753,150.02,149.99,6.66711114]
[1750171607516,0.28432314,149.99,149.95,24.14110087]
[1750171607718,0.28432314,149.99,149.96,6.66844491]
[1750171608019,7.75430867,149.99,149.96,6.66844491]
[1750171608218,0.28432314,149.99,149.96,6.66844491]
[1750171608520,7.75430867,149.99,149.96,6.66844491]
[1750171609250,0.28432314,149.99,149.96,6.66844491]
[1750171609441,7.75430867,149.99,149.96,6.66844491]
[1750171609754,0.28432314,149.99,149.96,6.66844491]
[1750171610321,0.28432314,149.99,149.94,6.6693344]
[1750171610322,7.75430867,149.99,149.94,6.6693344]
[1750171610650,7.46998553,149.96,149.92,6.67022411]
[1750171610856,0.28432314,149.96,149.92,14.14020964]
[1750171614530,0.14216157,149.98,149.93,7.46998553]
[1750171614739,12.72801279,149.98,149.93,7.46998553]
[1750171615453,7.46998553,149.97,149.93,7.46998553]
[1750171615846,5.25802726,149.98,149.94,6.6693344]
[1750171616043,12.72801279,149.98,149.94,6.6693344]
[1750171616350,7.46998553,149.97,149.94,6.6693344]
[1750171619557,7.46998553,149.99,149.95,7.46998553]
[1750171619722,32.54432314,150.0,149.94,23.3426704]
[1750171619723,32.26,150.0,149.97,7.46998553]
[1750171620056,6.26,150.0,149.98,7.46998553]
[1750171620260,0.28432314,150.01,149.98,7.46998553]
[1750171621040,26.0,150.02,149.99,7.46998553]
[1750171621238,26.0,150.02,150.0,6.66666666]
[1750171622247,33.46998553,150.02,150.0,6.66666666]
[1750171622650,6.24,150.05,150.01,7.46998553]
[1750171622843,18.64964886,150.07,150.04,7.46998553]
[1750171623033,4.96784425,150.09,150.05,7.46998553]
[1750171623242,4.96784425,150.08,150.05,14.13443071]
[1750171623468,38.72215292,150.09,150.05,14.13443071]
[1750171623675,26.28432314,150.09,150.05,14.13443071]
[1750171623841,33.75430867,150.09,150.05,14.13443071]
[1750171624574,12.43684617,150.08,150.05,6.66444518]
[1750171624932,7.46998553,150.08,150.05,6.66444518]
[1750171625157,26.11963439,150.06,150.02,6.66577789]
[1750171625355,7.75430867,150.05,150.02,6.66577789]
[1750171626668,0.28432314,150.05,150.02,14.13576342]
[1750171626847,0.28432314,150.05,150.03,7.46998553]
[1750171627657,0.14216157,150.07,150.04,7.46998553]
[1750171628051,0.28432314,150.07,150.04,7.46998553]
[1750171628851,18.933972,150.08,150.05,14.13443071]
[1750171629064,50.88964886,150.1,150.06,7.46998553]
[1750171629268,6.24,150.1,150.07,7.46998553]
[1750171629666,13.70998553,150.1,150.06,7.46998553]
[1750171629988,7.46998553,150.08,150.05,6.66444518]
[1750171630341,0.28432314,150.08,150.05,14.13443071]
[1750171631475,0.28432314,150.08,150.05,6.66444518]
[1750171631677,0.28432314,150.08,150.05,14.13443071]
[1750171631879,7.75430867,150.08,150.05,6.66444518]
[1750171632463,7.46998553,150.07,150.04,6.66473905]
[1750171632672,7.46998553,150.07,150.03,7.46998553]
[1750171632673,7.75430867,150.06,150.03,6.665179]
[1750171633067,0.28432314,150.06,150.03,6.665179]
[1750171633272,27.88,150.08,150.04,7.46998553]
[1750171633575,27.88,150.08,150.05,7.46998553]
[1750171633749,26.0,150.09,150.06,7.46998553]
[1750171633952,33.46998553,150.09,150.04,7.46998553]
[1750171634568,33.46998553,150.09,150.05,7.46998553]
[1750171634860,33.46998553,150.09,150.04,7.46998553]
[1750171635270,33.46998553,150.09,150.04,14.13487489]
[1750171635974,26.0,150.09,150.04,23.32711276]
[1750171636290,26.0,150.09,150.05,7.46998553]
[1750171636782,0.28432314,150.09,150.05,7.46998553]
[1750171637084,0.28432314,150.09,150.06,6.66400106]
[1750171637663,0.28432314,150.09,150.06,14.13398659]
[1750171637879,0.28432314,150.09,150.06,6.66400106]
[1750171638266,0.28432314,150.09,150.06,14.13398659]
[1750171638459,13.70998553,150.1,150.07,7.46998553]
[1750171638460,6.24,150.1,150.07,7.46998553]
[1750171639094,6.24,150.1,150.08,6.663113]
[1750171640392,6.24,150.1,150.08,14.13309853]
[1750171640885,7.89816157,150.14,150.09,7.46998553]
[1750171640886,35.34998553,150.14,150.09,7.46998553]
[1750171641190,0.28432314,150.13,150.1,6.66222518]
[1750171641380,35.34998553,150.14,150.1,6.66222518]
[1750171641688,7.46998553,150.13,150.1,6.66222518]
[1750171642090,0.14216157,150.13,150.1,6.66222518]
[1750171642268,0.28432314,150.13,150.1,6.66222518]
[1750171643193,0.28432314,150.13,150.1,14.13221071]
[1750171643980,0.28432314,150.13,150.11,7.46998553]
[1750171644602,0.28432314,150.13,150.1,30.78777366]
[1750171644907,6.24,150.15,150.11,7.46998553]
[1750171645068,13.70998553,150.15,150.1,30.78777366]
[1750171645691,6.24,150.15,150.1,30.78777366]
[1750171645900,13.70998553,150.15,150.1,30.78777366]
[1750171647171,7.46998553,150.14,150.1,30.78777366]
[1750171647386,13.70998553,150.15,150.1,30.78777366]
[1750171647582,7.46998553,150.12,150.1,6.66222518]
[1750171647892,7.46998553,150.11,150.08,6.663113]
[1750171648598,7.46998553,150.09,150.02,1.5846]
[1750171648798,0.28432314,150.08,149.99,6.66711114]
[1750171648980,7.46998553,150.05,150.0,7.46998553]
[1750171649169,7.46998553,150.06,150.01,33.46998553]
[1750171649365,7.46998553,150.05,150.01,33.46998553]
[1750171649570,7.46998553,150.04,150.0,7.46998553]
[1750171649786,7.46998553,150.05,150.01,26.0]
[1750171649995,7.46998553,150.05,150.02,26.0]
[1750171650800,7.46998553,150.06,150.02,26.0]
[1750171651182,7.46998553,150.06,150.03,6.66533359]
[1750171652569,7.46998553,150.05,150.03,6.66533359]
[1750171653181,7.46998553,150.06,150.03,6.66533359]
[1750171653397,7.46998553,150.06,150.02,6.66577789]
[1750171653790,18.64964886,150.07,150.02,6.66577789]
[1750171653997,7.46998553,150.05,150.02,6.66577789]
[1750171656183,7.75430867,150.06,150.02,14.13576342]
[1750171656593,13.68998553,150.08,150.04,7.46998553]
[1750171656924,6.22,150.08,150.05,7.46998553]
[1750171657597,6.22,150.08,150.06,6.66400106]
[1750171659617,6.22,150.08,150.04,7.46998553]
[1750171659618,7.46998553,150.08,150.04,7.46998553]
[1750171660133,0.28432314,150.09,150.04,7.46998553]
[1750171660370,7.46998553,150.08,150.04,7.46998553]
[1750171660957,7.46998553,150.05,150.02,6.66577789]
[1750171661142,7.46998553,150.04,149.99,7.46998553]
[1750171661347,7.46998553,150.05,150.0,7.46998553]
[1750171661838,6.94808986,150.07,150.01,6.66622225]
[1750171662446,7.46998553,150.05,150.01,6.66622225]
[1750171662654,7.46998553,150.05,150.01,14.13620778]
[1750171662863,6.94808986,150.07,150.01,14.13620778]
[1750171663052,7.46998553,150.05,150.0,7.46998553]
[1750171663970,7.75430867,150.04,150.0,7.46998553]
[1750171664175,7.46998553,150.03,149.99,14.13709667]
[1750171664860,7.75430867,150.04,149.99,14.13709667]
[1750171665648,0.28432314,150.04,149.99,14.13709667]
[1750171665849,7.75430867,150.04,149.99,14.13709667]
[1750171666989,7.46998553,150.02,149.99,6.66711114]
[1750171667880,7.46998553,150.01,149.97,7.46998553]
[1750171668473,0.28432314,150.01,149.97,7.46998553]
[1750171668674,7.75430867,150.01,149.96,7.46998553]
[1750171668882,7.75430867,150.01,149.97,7.46998553]
[1750171669193,0.28432314,150.01,149.97,7.46998553]
[1750171669397,7.75430867,150.01,149.97,7.46998553]
[1750171669604,7.75430867,150.01,149.98,6.66755567]
[1750171669798,7.46998553,150.02,149.98,6.66755567]
[1750171670001,7.46998553,150.02,149.98,14.1375412]
[1750171670892,7.75430867,150.03,149.99,7.46998553]
[1750171671074,7.46998553,150.04,150.0,7.46998553]
[1750171671482,7.46998553,150.03,149.96,23.3395572]
[1750171671993,7.46998553,150.03,149.99,7.46998553]
[1750171672301,7.46998553,150.02,149.98,7.46998553]
[1750171673078,7.46998553,150.02,149.99,6.66711114]
[1750171674479,7.75430867,150.03,149.99,14.13709667]
[1750171674678,7.75430867,150.04,149.99,14.13709667]
[1750171674882,7.46998553,150.03,149.99,14.13709667]
[1750171677413,0.28432314,150.04,149.99,14.13709667]
[1750171677602,7.46998553,150.03,149.99,14.13709667]
[1750171679426,0.28432314,150.04,149.99,6.66711114]
[1750171679728,7.46998553,150.03,149.99,14.13709667]
[1750171682322,6.22,150.06,150.04,7.46998553]
[1750171682705,7.46998553,150.08,150.04,7.46998553]
[1750171683032,33.46998553,150.09,150.05,7.46998553]
[1750171683228,7.46998553,150.1,150.05,7.46998553]
[1750171683412,8.43437992,150.12,150.07,7.46998553]
[1750171683602,8.43437992,150.12,150.1,7.46998553]
[1750171684009,8.43437992,150.12,150.11,14.13176689]
[1750171687320,8.43437992,150.12,150.11,6.66178136]
[1750171689042,8.43437992,150.12,150.11,14.13176689]
[1750171689417,0.28432314,150.16,150.11,6.66178136]
[1750171689614,0.28432314,150.16,150.12,7.46998553]
[1750171690014,0.28432314,150.16,150.13,7.46998553]
[1750171690241,0.28432314,150.16,150.14,6.66045024]
[1750171690609,7.75430867,150.16,150.13,6.66071703]
[1750171691016,7.46998553,150.14,150.09,14.13265459]
[1750171691219,7.46998553,150.13,150.09,14.13265459]
[1750171691418,7.75430867,150.12,150.09,6.66266906]
[1750171691631,7.46998553,150.1,150.06,7.46998553]
[1750171691817,7.46998553,150.1,150.06,14.13398659]
[1750171692017,7.46998553,150.08,150.04,6.66488936]
[1750171692323,7.46998553,150.08,150.04,7.46998553]
[1750171693737,7.46998553,150.06,150.02,30.79919435]
[1750171693927,7.46998553,150.07,150.02,30.79919435]
[1750171694155,7.46998553,150.07,150.03,7.46998553]
[1750171694333,18.933972,150.09,150.04,14.13487489]
[1750171694528,7.46998553,150.08,150.04,14.13487489]
[1750171695132,7.46998553,150.08,150.04,6.66488936]
[1750171695315,7.46998553,150.07,150.04,6.66488936]
[1750171695940,7.46998553,150.06,150.04,6.66488936]
[1750171696123,7.46998553,150.07,150.04,6.66488936]
[1750171696711,0.28432314,150.08,150.02,16.66343093]
[1750171696712,7.46998553,150.06,150.02,6.66577789]
[1750171696925,7.46998553,150.06,150.02,14.13576342]
[1750171697118,26.28432314,150.08,150.02,14.13576342]
[1750171697415,7.46998553,150.07,150.02,14.13576342]
[1750171697909,7.46998553,150.07,150.03,7.46998553]
[1750171698310,7.46998553,150.07,150.02,30.80020816]
[1750171698510,26.28432314,150.08,150.02,30.80020816]
[1750171698718,7.46998553,150.06,150.02,14.13576342]
[1750171699115,26.40395753,150.07,150.02,14.13576342]
[1750171699735,7.46998553,150.06,150.02,6.66577789]
[1750171699930,7.46998553,150.06,150.02,14.13576342]
[1750171700133,7.46998553,150.05,150.02,6.66577789]
[1750171700315,7.46998553,150.04,150.01,6.66604712]
[1750171700719,7.46998553,150.05,150.01,14.13603265]
[1750171700919,0.28432314,150.05,150.02,7.46998553]
[1750171701517,0.28432314,150.03,149.95,1.6213]
[1750171701738,7.46998553,149.99,149.96,6.66844491]
[1750171702436,7.46998553,149.99,149.95,6.66888962]
[1750171702624,7.46998553,149.97,149.92,6.67022411]
[1750171702831,7.46998553,149.96,149.92,6.67022411]
[1750171703031,7.46998553,149.94,149.89,14.14154467]
[1750171703229,7.46998553,149.94,149.89,6.67155914]
[1750171703437,7.46998553,149.94,149.89,14.14154467]
[1750171704517,0.28432314,149.97,149.92,7.46998553]
[1750171704717,7.46998553,149.96,149.91,7.46998553]
[1750171704934,0.28432314,149.97,149.91,7.46998553]
[1750171704935,11.21514111,149.95,149.91,11.21514111]
[1750171705125,0.28432314,149.97,149.91,11.21514111]
[1750171705329,11.21514111,149.95,149.91,11.21514111]
[1750171706060,11.21514111,149.95,149.91,6.67066906]
[1750171706251,11.21514111,149.94,149.91,6.67066906]
[1750171707741,0.28432314,149.95,149.91,6.67066906]
[1750171707940,0.42648471,149.95,149.88,6.67200427]
[1750171708149,11.21514111,149.91,149.88,6.67200427]
[1750171708351,11.21514111,149.9,149.88,6.67200427]
[1750171708651,24.84964886,149.96,149.89,11.21514111]
[1750171708856,37.21514111,149.96,149.92,11.21514111]
[1750171709747,37.21514111,149.96,149.92,6.67022411]
[1750171711558,26.0,149.96,149.92,6.67022411]
[1750171711757,37.21514111,149.96,149.92,6.67022411]
[1750171712556,11.21514111,149.95,149.92,6.67022411]
[1750171713438,0.28432314,149.95,149.92,6.67022411]
[1750171713643,11.49946425,149.95,149.92,6.67022411]
[1750171714731,26.0,149.96,149.92,17.88536522]
[1750171714932,26.0,149.96,149.93,11.21514111]
[1750171715353,0.14216157,149.97,149.94,11.21514111]
[1750171715546,32.2,149.98,149.95,11.21514111]
[1750171715747,6.2,149.98,149.94,11.21514111]
[1750171716050,167.74964886,150.0,149.94,11.21514111]
[1750171716051,149.1,150.0,149.97,11.21514111]
[1750171716230,26.0,150.0,149.99,11.21514111]
[1750171716434,18.933972,150.02,149.95,23.34111369]
[1750171716661,11.21514111,150.01,149.97,11.21514111]
[1750171716855,11.21514111,149.98,149.95,6.66888962]
[1750171717053,11.49946425,149.97,149.95,6.66888962]
[1750171717254,0.28432314,149.97,149.95,6.66888962]
[1750171717561,18.64964886,149.98,149.95,17.88403073]
[1750171717562,0.28432314,149.98,149.95,17.88403073]
[1750171717928,26.0,149.99,149.97,11.21514111]
[1750171718159,39.41514111,150.02,149.97,11.21514111]
[1750171718345,26.0,150.01,149.97,11.21514111]
[1750171718651,11.49946425,150.0,149.98,6.66755567]
[1750171719244,26.0,150.01,149.98,17.88269678]
[1750171719428,18.64964886,149.96,149.91,6.67066906]
[1750171719632,0.28432314,149.9,149.82,6.67467627]
[1750171719834,11.21514111,149.87,149.82,6.67467627]
[1750171720150,11.21514111,149.89,149.84,11.21514111]
[1750171720354,28.2,149.9,149.87,11.21514111]
[1750171720664,11.49946425,149.92,149.88,11.21514111]
[1750171721535,11.21514111,149.91,149.87,17.88717185]
[1750171721847,28.2,149.93,149.89,11.21514111]
[1750171722165,0.28432314,149.93,149.89,11.21514111]
[1750171722329,37.21514111,149.94,149.87,23.35315438]
[1750171722535,0.28432314,149.94,149.91,6.67066906]
[1750171722758,11.21514111,149.95,149.91,17.88581017]
[1750171724049,11.21514111,149.95,149.91,6.67066906]
[1750171724253,0.28432314,149.95,149.91,6.67066906]
[1750171724759,11.49946425,149.95,149.91,17.88581017]
[1750171724931,0.28432314,149.95,149.91,17.88581017]
[1750171725364,32.42,149.96,149.93,11.21514111]
[1750171725742,6.42,149.96,149.91,23.34734173]
[1750171726064,6.42,149.96,149.92,11.21514111]
[1750171726065,17.63514111,149.96,149.92,11.21514111]
[1750171727739,17.63514111,149.96,149.93,6.66977923]
[1750171728061,43.63514111,149.96,149.88,7.8724]
[1750171728253,11.21514111,149.94,149.89,17.88670025]
[1750171728457,30.14911311,149.95,149.9,11.21514111]